fUST/lending_fUST_20250906
["ID","MTS","AMOUNT","RATE_DAILY","PERIOD"]
[383728972,1757103039833,-480.0,0.00013972,2]
[383728974,1757103039842,-480.0,0.00013972,2]
[383728976,1757103039853,-480.0,0.00013972,2]
[383728978,1757103039863,-480.0,0.00013972,2]
[383728980,1757103039877,-444.04604287,0.00013972,2]
[383728982,1757103039887,-480.0,0.00013972,2]
[383728984,1757103039896,-480.0,0.00013972,2]
[383728986,1757103039909,-480.0,0.00013972,2]
[383728988,1757103039919,-480.0,0.00013972,2]
[383728990,1757103039928,-480.0,0.00013972,2]
[383728992,1757103039938,-480.0,0.00013972,2]
[383728994,1757103039947,-480.0,0.00013972,2]
[383728996,1757103039956,-341.05,0.00013972,2]
[383728998,1757103039965,-480.0,0.00013972,2]
[383729001,1757103039975,-179.46312414,0.00013972,2]
[383729004,1757103039984,-480.0,0.00013972,2]
[383729006,1757103039994,-480.0,0.00013972,2]
[383729008,1757103040003,-482.0,0.00013972,2]
[383729010,1757103040012,-553.17792312,0.00013972,2]
[383729012,1757103040022,-480.0,0.00013972,2]
[383729014,1757103040032,-480.0,0.00013972,2]
[383729016,1757103040042,-480.0,0.00013972,2]
[383729018,1757103040051,-614.49,0.00013972,2]
[383729020,1757103040061,-480.0,0.00013972,2]
[383729022,1757103040070,-480.0,0.00013972,2]
[383729024,1757103040080,-480.0,0.00013972,2]
[383729026,1757103040090,-480.0,0.00013972,2]
[383729028,1757103040099,-480.0,0.00013972,2]
[383729030,1757103040110,-480.0,0.00013972,2]
[383729032,1757103040120,-480.0,0.00013972,2]
[383729034,1757103040130,-480.0,0.00013972,2]
[383729036,1757103040139,-480.0,0.00013972,2]
[383729038,1757103040148,-480.0,0.00013972,2]
[383729040,1757103040158,-480.0,0.00013972,2]
[383729042,1757103040168,-480.0,0.00013972,2]
[383729044,1757103040177,-480.0,0.00013972,2]
[383729046,1757103040187,-494.09355426,0.00013972,2]
[383729048,1757103040195,-589.91,0.00013972,2]
[383729050,1757103040204,-480.0,0.00013972,2]
[383729052,1757103040215,-480.0,0.00013972,2]
[383729054,1757103040224,-480.0,0.00013972,2]
[383729056,1757103040233,-480.0,0.00013972,2]
[383729058,1757103040243,-480.0,0.00013972,2]
[383729060,1757103040253,-480.0,0.00013972,2]
[383729062,1757103040262,-480.0,0.00013972,2]
[383729064,1757103040271,-480.0,0.00013972,2]
[383729066,1757103040280,-480.0,0.00013972,2]
[383729068,1757103040290,-480.0,0.00013972,2]
[383729070,1757103040299,-695.74,0.00013972,2]
[383729072,1757103040308,-480.0,0.00013972,2]
[383729074,1757103040317,-480.0,0.00013972,2]
[383729076,1757103040326,-480.0,0.00013972,2]
[383729078,1757103040335,-480.0,0.00013972,2]
[383729080,1757103040343,-480.0,0.00013972,2]
[383729082,1757103040352,-480.0,0.00013972,2]
[383729084,1757103040361,-480.0,0.00013972,2]
[383729086,1757103040370,-513.79,0.00013972,2]
[383729088,1757103040379,-480.0,0.00013972,2]
[383729090,1757103040389,-569.37,0.00013972,2]
[383729092,1757103040398,-480.0,0.00013972,2]
[383729094,1757103040408,-818.23,0.00013972,2]
[383729096,1757103040417,-339.70920272,0.00013972,2]
[383729098,1757103040426,-480.0,0.00013972,2]
[383729100,1757103040436,-480.0,0.00013972,2]
[383729102,1757103040446,-480.0,0.00013972,2]
[383729104,1757103040456,-480.0,0.00013972,2]
[383729106,1757103040466,-596.14,0.00013972,2]
[383729108,1757103040476,-480.0,0.00013972,2]
[383729110,1757103040486,-480.0,0.00013972,2]
[383729112,1757103040495,-480.0,0.00013972,2]
[383729114,1757103040505,-480.0,0.00013972,2]
[383729116,1757103040514,-480.0,0.00013972,2]
[383729118,1757103040523,-480.0,0.00013972,2]
[383729120,1757103040532,-480.0,0.00013972,2]
[383729121,1757103040542,-480.0,0.00013972,2]
[383729124,1757103040551,-480.0,0.00013972,2]
[383729126,1757103040561,-480.0,0.00013972,2]
[383729129,1757103040571,-397.26637898,0.00013972,2]
[383729130,1757103040582,-480.0,0.00013972,2]
[383729133,1757103040592,-480.0,0.00013972,2]
[383729134,1757103040602,-480.0,0.00013972,2]
[383729136,1757103040611,-480.0,0.00013972,2]
[383729139,1757103040621,-480.0,0.00013972,2]
[383729141,1757103040630,-424.07452718,0.00013972,2]
[383729143,1757103040639,-480.0,0.00013972,2]
[383729145,1757103040649,-480.0,0.00013972,2]
[383729147,1757103040658,-480.0,0.00013972,2]
[383729149,1757103040667,-480.0,0.00013972,2]
[383729151,1757103040676,-480.0,0.00013972,2]
[383729153,1757103040685,-480.0,0.00013972,2]
[383729155,1757103040695,-480.0,0.00013972,2]
[383729157,1757103040704,-480.0,0.00013972,2]
[383729159,1757103040713,-480.0,0.00013972,2]
[383729161,1757103040723,-1090.3,0.00013972,2]
[383729163,1757103040732,-480.0,0.00013972,2]
[383729165,1757103040742,-480.0,0.00013972,2]
[383729167,1757103040752,-2838.89,0.00013972,2]
[383729169,1757103040761,-480.0,0.00013972,2]
[383729171,1757103040771,-480.0,0.00013972,2]
[383729173,1757103040780,-480.0,0.00013972,2]
[383729175,1757103040789,-1570.51,0.00013972,2]
[383729177,1757103040799,-480.0,0.00013972,2]
[383729179,1757103040808,-480.0,0.00013972,2]
[383729181,1757103040819,-480.0,0.00013972,2]
[383729183,1757103040828,-620.07,0.00013972,2]
[383729185,1757103040838,-480.0,0.00013972,2]
[383729187,1757103040847,-480.0,0.00013972,2]
[383729189,1757103040857,-641.06,0.00013972,2]
[383729191,1757103040870,-480.0,0.00013972,2]
[383729193,1757103040880,-480.0,0.00013972,2]
[383729195,1757103040889,-480.0,0.00013972,2]
[383729197,1757103040898,-480.0,0.00013972,2]
[383729199,1757103040907,-480.0,0.00013972,2]
[383729201,1757103040919,-481.32958411,0.00013972,2]
[383729203,1757103040928,-480.0,0.00013972,2]
[383729205,1757103040938,-480.0,0.00013972,2]
[383729207,1757103040948,-480.0,0.00013972,2]
[383729209,1757103040957,-480.0,0.00013972,2]
[383729210,1757103040967,-480.0,0.00013972,2]
[383729213,1757103040976,-480.0,0.00013972,2]
[383729214,1757103040985,-480.0,0.00013972,2]
[383729217,1757103040994,-543.49,0.00013972,2]
[383729219,1757103041004,-1179.32,0.00013972,2]
[383729220,1757103041014,-480.0,0.00013972,2]
[383729222,1757103041023,-480.0,0.00013972,2]
[383729224,1757103041032,-480.0,0.00013972,2]
[383729226,1757103041041,-480.0,0.00013972,2]
[383729228,1757103041050,-633.15,0.00013972,2]
[383729230,1757103041060,-480.0,0.00013972,2]
[383729232,1757103041069,-480.0,0.00013972,2]
[383729234,1757103041079,-480.0,0.00013972,2]
[383729236,1757103041087,-480.0,0.00013972,2]
[383729238,1757103041097,-480.0,0.00013972,2]
[383729240,1757103041106,-480.0,0.00013972,2]
[383729242,1757103041116,-480.0,0.00013972,2]
[383729244,1757103041125,-701.9,0.00013972,2]
[383729246,1757103041135,-480.0,0.00013972,2]
[383729248,1757103041144,-777.67,0.00013972,2]
[383729250,1757103041153,-3459.85,0.00013972,2]
[383729252,1757103041163,-480.0,0.00013972,2]
[383729254,1757103041172,-480.0,0.00013972,2]
[383729256,1757103041181,-480.0,0.00013972,2]
[383729258,1757103041191,-480.0,0.00013972,2]
[383729260,1757103041200,-480.0,0.00013972,2]
[383729262,1757103041209,-666.07,0.00013972,2]
[383729264,1757103041219,-1435.86,0.00013972,2]
[383729277,1757103041228,-480.0,0.00013972,2]
[383729279,1757103041339,-480.0,0.00013972,2]
[383729282,1757103041351,-480.0,0.00013972,2]
[383729283,1757103041361,-480.0,0.00013972,2]
[383729285,1757103041371,-687.92,0.00013972,2]
[383729288,1757103041380,-480.0,0.00013972,2]
[383729290,1757103041389,-480.0,0.00013972,2]
[383729292,1757103041399,-480.0,0.00013972,2]
[383729294,1757103041409,-480.0,0.00013972,2]
[383729296,1757103041418,-483.91690469,0.00013972,2]
[383729298,1757103041428,-626.27,0.00013972,2]
[383729300,1757103041437,-480.0,0.00013972,2]
[383729302,1757103041447,-480.0,0.00013972,2]
[383729304,1757103041456,-480.0,0.00013972,2]
[383729306,1757103041465,-480.0,0.00013972,2]
[383729308,1757103041475,-480.0,0.00013972,2]
[383729310,1757103041484,-480.0,0.00013972,2]
[383729312,1757103041494,-480.0,0.00013972,2]
[383729314,1757103041503,-480.0,0.00013972,2]
[383729316,1757103041513,-480.0,0.00013972,2]
[383729318,1757103041522,-480.0,0.00013972,2]
[383729320,1757103041531,-480.0,0.00013972,2]
[383729322,1757103041540,-480.0,0.00013972,2]
[383729324,1757103041549,-481.22085778,0.00013972,2]
[383729326,1757103041559,-511.16,0.00013972,2]
[383729328,1757103041568,-665.9,0.00013972,2]
[383729329,1757103041577,-480.0,0.00013972,2]
[383729332,1757103041586,-640.34,0.00013972,2]
[383729334,1757103041595,-480.0,0.00013972,2]
[383729335,1757103041605,-790.66,0.00013972,2]
[383729338,1757103041615,-480.0,0.00013972,2]
[383729340,1757103041624,-480.0,0.00013972,2]
[383729342,1757103041634,-1666.92,0.00013972,2]
[383729344,1757103041643,-480.0,0.00013972,2]
[383729346,1757103041653,-480.0,0.00013972,2]
[383729348,1757103041663,-480.0,0.00013972,2]
[383729350,1757103041672,-358.74170817,0.00013972,2]
[383729352,1757103041682,-480.0,0.00013972,2]
[383729354,1757103041691,-480.0,0.00013972,2]
[383729356,1757103041701,-480.0,0.00013972,2]
[383729358,1757103041710,-480.0,0.00013972,2]
[383729360,1757103041719,-2180.69,0.00013972,2]
[383729362,1757103041729,-480.0,0.00013972,2]
[383729364,1757103041739,-485.35424664,0.00013972,2]
[383729366,1757103041748,-480.0,0.00013972,2]
[383729368,1757103041757,-480.0,0.00013972,2]
[383729370,1757103041767,-480.0,0.00013972,2]
[383729372,1757103041776,-480.0,0.00013972,2]
[383729374,1757103041786,-480.0,0.00013972,2]
[383729376,1757103041796,-7203.67,0.00013972,2]
[383729378,1757103041806,-480.0,0.00013972,2]
[383729380,1757103041816,-1225.97,0.00013972,2]
[383729382,1757103041826,-480.0,0.00013972,2]
[383729384,1757103041835,-480.0,0.00013972,2]
[383729386,1757103041844,-480.0,0.00013972,2]
[383729388,1757103041855,-223.17557535,0.00013972,2]
[383729390,1757103041865,-480.0,0.00013972,2]
[383729392,1757103041879,-480.0,0.00013972,2]
[383729394,1757103041889,-480.0,0.00013972,2]
[383729396,1757103041898,-480.0,0.00013972,2]
[383729398,1757103041907,-480.0,0.00013972,2]
[383729400,1757103041917,-1428.8,0.00013972,2]
[383729402,1757103041926,-482.82529006,0.00013972,2]
[383729404,1757103041936,-1108.64,0.00013972,2]
[383729406,1757103041946,-480.0,0.00013972,2]
[383729409,1757103041956,-865.75,0.00013972,2]
[383729410,1757103041966,-4093.04,0.00013972,2]
[383729411,1757103041976,-534.04,0.00013972,2]
[383729412,1757103041985,-611.61,0.00013972,2]
[383729413,1757103041995,-480.0,0.00013972,2]
[383729414,1757103042005,-555.37,0.00013972,2]
[383729415,1757103042016,-480.0,0.00013972,2]
[383729416,1757103042026,-480.0,0.00013972,2]
[383729417,1757103042035,-480.0,0.00013972,2]
[383729418,1757103042045,-480.0,0.00013972,2]
[383729419,1757103042054,-480.0,0.00013972,2]
[383729420,1757103042064,-2005.54,0.00013972,2]
[383729421,1757103042073,-695.85,0.00013972,2]
[383729422,1757103042083,-480.0,0.00013972,2]
[383729423,1757103042092,-480.0,0.00013972,2]
[383729424,1757103042102,-641.0,0.00013972,2]
[383729425,1757103042111,-674.5,0.00013972,2]
[383729426,1757103042120,-480.0,0.00013972,2]
[383729427,1757103042130,-480.0,0.00013972,2]
[383729428,1757103042139,-480.0,0.00013972,2]
[383729429,1757103042148,-2484.53,0.00013972,2]
[383729430,1757103042158,-480.0,0.00013972,2]
[383729431,1757103042167,-480.0,0.00013972,2]
[383729432,1757103042177,-1101.11,0.00013972,2]
[383729433,1757103042186,-480.0,0.00013972,2]
[383729435,1757103042195,-574.78216597,0.00013972,2]
[383729437,1757103042204,-480.0,0.00013972,2]
[383729439,1757103042214,-698.74,0.00013972,2]
[383729441,1757103042223,-480.0,0.00013972,2]
[383729442,1757103042233,-480.0,0.00013972,2]
[383729444,1757103042243,-1021.02,0.00013972,2]
[383729446,1757103042252,-480.0,0.00013972,2]
[383729449,1757103042262,-208.98692899,0.00013972,2]
[383729451,1757103042271,-480.0,0.00013972,2]
[383729452,1757103042281,-480.0,0.00013972,2]
[383729455,1757103042291,-480.0,0.00013972,2]
[383729456,1757103042300,-480.0,0.00013972,2]
[383729459,1757103042310,-489.39,0.00013972,2]
[383729460,1757103042319,-499.95,0.00013972,2]
[383729462,1757103042329,-480.0,0.00013972,2]
[383729464,1757103042338,-480.0,0.00013972,2]
[383729466,1757103042347,-751.81,0.00013972,2]
[383729468,1757103042356,-480.0,0.00013972,2]
[383729470,1757103042366,-1850.07,0.00013972,2]
[383729472,1757103042375,-480.0,0.00013972,2]
[383729474,1757103042384,-480.0,0.00013972,2]
[383729476,1757103042394,-480.0,0.00013972,2]
[383729478,1757103042404,-480.0,0.00013972,2]
[383729480,1757103042413,-480.0,0.00013972,2]
[383729482,1757103042423,-480.0,0.00013972,2]
[383729484,1757103042432,-480.0,0.00013972,2]
[383729486,1757103042441,-254.99838623,0.00013972,2]
[383729488,1757103042451,-480.0,0.00013972,2]
[383729490,1757103042460,-480.0,0.00013972,2]
[383729492,1757103042470,-480.0,0.00013972,2]
[383729494,1757103042479,-480.0,0.00013972,2]
[383729496,1757103042489,-480.0,0.00013972,2]
[383729498,1757103042499,-480.0,0.00013972,2]
[383729500,1757103042508,-480.0,0.00013972,2]
[383729502,1757103042518,-480.0,0.00013972,2]
[383729504,1757103042527,-689.34,0.00013972,2]
[383729506,1757103042536,-481.01,0.00013972,2]
[383729508,1757103042545,-934.43,0.00013972,2]
[383729510,1757103042554,-480.0,0.00013972,2]
[383729512,1757103042563,-626.55,0.00013972,2]
[383729514,1757103042572,-480.0,0.00013972,2]
[383729516,1757103042582,-2351.15,0.00013972,2]
[383729518,1757103042591,-480.0,0.00013972,2]
[383729520,1757103042600,-480.0,0.00013972,2]
[383729522,1757103042610,-480.0,0.00013972,2]
[383729524,1757103042622,-480.0,0.00013972,2]
[383729526,1757103042631,-1182.5,0.00013972,2]
[383729528,1757103042640,-598.75,0.00013972,2]
[383729530,1757103042649,-480.0,0.00013972,2]
[383729532,1757103042659,-480.0,0.00013972,2]
[383729534,1757103042668,-480.0,0.00013972,2]
[383729536,1757103042678,-480.0,0.00013972,2]
[383729538,1757103042687,-500.0,0.00013973,2]
[383729540,1757103042697,-500.0,0.00013973,2]
[383729542,1757103042707,-500.0,0.00013973,2]
[383729544,1757103042716,-500.0,0.00013973,2]
[383729546,1757103042726,-500.0,0.00013973,2]
[383729548,1757103042735,-590.45919396,0.00013973,2]
[383729550,1757103042746,-517.5091631,0.00013973,2]
[383729553,1757103042755,-500.0,0.00013973,2]
[383729555,1757103042766,-500.0,0.00013973,2]
[383729557,1757103042776,-500.0,0.00013973,2]
[383729559,1757103042786,-500.0,0.00013973,2]
[383729561,1757103042795,-370.29183906,0.00013973,2]
[383729563,1757103042805,-500.0,0.00013973,2]
[383729566,1757103042814,-169.9133702,0.00013973,2]
[383729569,1757103042823,-500.0,0.00013973,2]
[383729571,1757103042833,-62403.57718035,0.0001399,2]
[383729573,1757103042843,-151.0,0.0001399,2]
[383729575,1757103042851,-151.0,0.0001399,2]
[383729577,1757103042861,-151.0,0.0001399,2]
[383729579,1757103042875,-20746.26328358,0.00014139,2]
[383729581,1757103042884,-151.0,0.00014139,2]
[383729583,1757103042893,-151.0,0.00014139,2]
[383729585,1757103042902,-151.0,0.00014139,2]
[383729586,1757103042911,-250.0,0.00014139,2]
[383729588,1757103042920,-151.0,0.00014139,2]
[383729590,1757103042930,-250.0,0.00014139,2]
[383729593,1757103042940,-151.0,0.00014139,2]
[383729595,1757103042949,-300.0,0.00014139,2]
[383729598,1757103042959,-151.0,0.00014139,2]
[383729601,1757103042968,-151.0,0.00014139,2]
[383729603,1757103042977,-151.0,0.00014139,2]
[383729606,1757103042986,-151.0,0.00014139,2]
[383729609,1757103042997,-151.0,0.00014139,2]
[383729611,1757103043006,-151.0,0.00014139,2]
[383729613,1757103043015,-151.0,0.00014139,2]
[383729615,1757103043025,-151.0,0.00014139,2]
[383729617,1757103043035,-151.0,0.00014139,2]
[383729619,1757103043044,-151.0,0.00014139,2]
[383729621,1757103043053,-181.08010149,0.00014139,2]
[383729624,1757103043061,-153.32715265,0.00014139,2]
[383729626,1757103043071,-151.0,0.00014139,2]
[383729629,1757103043080,-151.0,0.00014139,2]
[383729632,1757103043090,-151.0,0.00014139,2]
[383729635,1757103043099,-151.0,0.00014139,2]
[383729637,1757103043108,-151.0,0.00014139,2]
[383729639,1757103043118,-202.118102,0.00014139,2]
[383729641,1757103043127,-500.0,0.00014221,2]
[383729643,1757103043136,-1000.0,0.00014221,2]
[383729645,1757103043145,-1000.0,0.00014221,2]
[383729647,1757103043154,-1000.0,0.00014221,2]
[383729649,1757103043163,-509.16508145,0.00014221,2]
[383729651,1757103043172,-1000.0,0.00014221,2]
[383729653,1757103043181,-1000.0,0.00014221,2]
[383729655,1757103043190,-252.0223145,0.00014246,2]
[383729657,1757103043200,-480.0,0.00014246,2]
[383729659,1757103043209,-480.0,0.00014246,2]
[383729661,1757103043218,-480.0,0.00014246,2]
[383729663,1757103043228,-480.0,0.00014246,2]
[383729665,1757103043237,-706.16,0.00014246,2]
[383729667,1757103043246,-480.0,0.00014246,2]
[383729669,1757103043256,-480.0,0.00014246,2]
[383729671,1757103043265,-480.0,0.00014246,2]
[383729673,1757103043274,-480.0,0.00014246,2]
[383729674,1757103043283,-480.0,0.00014246,2]
[383729676,1757103043292,-480.0,0.00014246,2]
[383729678,1757103043301,-505.99726117,0.00014246,2]
[383729680,1757103043310,-512.40772349,0.00014246,2]
[383729682,1757103043319,-480.0,0.00014246,2]
[383729684,1757103043329,-482.0,0.00014246,2]
[383729686,1757103043338,-480.0,0.00014246,2]
[383729688,1757103043347,-480.0,0.00014246,2]
[383729690,1757103043356,-614.49,0.00014246,2]
[383729692,1757103043366,-480.0,0.00014246,2]
[383729694,1757103043375,-480.0,0.00014246,2]
[383729696,1757103043385,-480.0,0.00014246,2]
[383729698,1757103043394,-480.0,0.00014246,2]
[383729700,1757103043404,-480.0,0.00014246,2]
[383729702,1757103043414,-480.0,0.00014246,2]
[383729704,1757103043423,-480.0,0.00014246,2]
[383729706,1757103043433,-589.91,0.00014246,2]
[383729708,1757103043443,-480.0,0.00014246,2]
[383729710,1757103043452,-151.0,0.00014246,2]
[383729712,1757103043462,-339.81171498,0.00014246,2]
[383729725,1757103043569,-151.0,0.00014246,2]
[383729727,1757103043578,-480.0,0.00014246,2]
[383729729,1757103043587,-151.0,0.00014246,2]
[383729730,1757103043596,-151.0,0.00014246,2]
[383729732,1757103043606,-480.0,0.00014246,2]
[383729734,1757103043616,-480.0,0.00014246,2]
[383729736,1757103043625,-480.0,0.00014246,2]
[383729738,1757103043635,-532.79,0.00014246,2]
[383729740,1757103043644,-151.0,0.00014246,2]
[383729743,1757103043653,-151.0,0.00014246,2]
[383729746,1757103043663,-495.93,0.00014246,2]
[383729749,1757103043672,-480.0,0.00014246,2]
[383729751,1757103043682,-695.74,0.00014246,2]
[383729753,1757103043692,-480.0,0.00014246,2]
[383729755,1757103043701,-480.0,0.00014246,2]
[383729757,1757103043710,-513.79,0.00014246,2]
[383729759,1757103043720,-151.0,0.00014246,2]
[383729761,1757103043730,-569.37,0.00014246,2]
[383729763,1757103043739,-818.23,0.00014246,2]
[383729765,1757103043748,-480.0,0.00014246,2]
[383729767,1757103043758,-480.0,0.00014246,2]
[383729769,1757103043767,-480.0,0.00014246,2]
[383729771,1757103043776,-480.0,0.00014246,2]
[383729773,1757103043785,-480.0,0.00014246,2]
[383729775,1757103043794,-480.0,0.00014246,2]
[383729777,1757103043803,-480.0,0.00014246,2]
[383729779,1757103043812,-480.0,0.00014246,2]
[383729781,1757103043822,-480.0,0.00014246,2]
[383729783,1757103043831,-480.0,0.00014246,2]
[383729785,1757103043840,-480.0,0.00014246,2]
[383729787,1757103043849,-480.0,0.00014246,2]
[383729789,1757103043861,-488.10392383,0.00014246,2]
[383729791,1757103043874,-343.67693632,0.00014246,2]
[383729793,1757103043884,-480.0,0.00014246,2]
[383729795,1757103043893,-585.41891932,0.00014246,2]
[383729797,1757103043903,-558.90422319,0.00014246,2]
[383729799,1757103043913,-480.0,0.00014246,2]
[383729801,1757103043922,-1090.3,0.00014246,2]
[383729803,1757103043931,-2838.89,0.00014246,2]
[383729805,1757103043941,-480.0,0.00014246,2]
[383729807,1757103043951,-202.34,0.00014246,2]
[383729809,1757103043962,-480.0,0.00014246,2]
[383729811,1757103043972,-1570.51,0.00014246,2]
[383729813,1757103043982,-480.0,0.00014246,2]
[383729815,1757103043991,-151.0,0.00014246,2]
[383729817,1757103044000,-480.0,0.00014246,2]
[383729819,1757103044010,-620.07,0.00014246,2]
[383729821,1757103044019,-492.16,0.00014246,2]
[383729823,1757103044028,-480.0,0.00014246,2]
[383729825,1757103044037,-641.06,0.00014246,2]
[383729827,1757103044047,-203.635943,0.00014246,2]
[383729829,1757103044056,-203.635943,0.00014246,2]
[383729831,1757103044065,-480.0,0.00014246,2]
[383729833,1757103044074,-581.16,0.00014246,2]
[383729834,1757103044083,-480.0,0.00014246,2]
[383729836,1757103044092,-480.0,0.00014246,2]
[383729839,1757103044102,-335.25736614,0.00014246,2]
[383729841,1757103044112,-151.325215,0.00014246,2]
[383729843,1757103044122,-593.82,0.00014246,2]
[383729845,1757103044131,-480.0,0.00014246,2]
[383729846,1757103044140,-480.0,0.00014246,2]
[383729848,1757103044149,-480.0,0.00014246,2]
[383729850,1757103044158,-482.17853753,0.00014246,2]
[383729852,1757103044167,-1179.32,0.00014246,2]
[383729854,1757103044178,-214.97,0.00014246,2]
[383729856,1757103044187,-151.0,0.00014246,2]
[383729858,1757103044196,-633.15,0.00014246,2]
[383729860,1757103044206,-480.0,0.00014246,2]
[383729862,1757103044215,-480.0,0.00014246,2]
[383729864,1757103044224,-480.0,0.00014246,2]
[383729866,1757103044234,-153.104665,0.00014246,2]
[383729868,1757103044243,-166.064561,0.00014246,2]
[383729870,1757103044252,-480.0,0.00014246,2]
[383729872,1757103044261,-701.9,0.00014246,2]
[383729874,1757103044270,-480.0,0.00014246,2]
[383729876,1757103044280,-777.67,0.00014246,2]
[383729878,1757103044289,-3459.85,0.00014246,2]
[383729880,1757103044298,-480.0,0.00014246,2]
[383729882,1757103044307,-480.0,0.00014246,2]
[383729884,1757103044316,-161.448066,0.00014246,2]
[383729886,1757103044325,-483.61537108,0.00014246,2]
[383729887,1757103044334,-666.07,0.00014246,2]
[383729890,1757103044344,-1435.86,0.00014246,2]
[383729891,1757103044354,-480.0,0.00014246,2]
[383729893,1757103044364,-480.0,0.00014246,2]
[383729896,1757103044374,-531.75,0.00014246,2]
[383729897,1757103044383,-687.92,0.00014246,2]
[383729899,1757103044392,-480.0,0.00014246,2]
[383729901,1757103044401,-480.0,0.00014246,2]
[383729903,1757103044410,-480.0,0.00014246,2]
[383729905,1757103044420,-480.0,0.00014246,2]
[383729907,1757103044429,-626.27,0.00014246,2]
[383729909,1757103044438,-480.0,0.00014246,2]
[383729911,1757103044447,-174.366444,0.00014246,2]
[383729913,1757103044457,-480.0,0.00014246,2]
[383729915,1757103044468,-480.0,0.00014246,2]
[383729917,1757103044477,-480.0,0.00014246,2]
[383729919,1757103044487,-480.0,0.00014246,2]
[383729921,1757103044496,-480.0,0.00014246,2]
[383729923,1757103044506,-480.0,0.00014246,2]
[383729924,1757103044515,-665.9,0.00014246,2]
[383729925,1757103044524,-151.0,0.00014246,2]
[383729926,1757103044534,-640.34,0.00014246,2]
[383729927,1757103044543,-480.0,0.00014246,2]
[383729928,1757103044555,-790.66,0.00014246,2]
[383729929,1757103044570,-480.0,0.00014246,2]
[383729930,1757103044583,-480.0,0.00014246,2]
[383729932,1757103044596,-151.0,0.00014246,2]
[383729934,1757103044608,-1666.92,0.00014246,2]
[383729937,1757103044621,-592.40861969,0.00014246,2]
[383729939,1757103044634,-294.65739973,0.00014246,2]
[383729942,1757103044648,-344.20763265,0.00014246,2]
[383729944,1757103044660,-480.0,0.00014246,2]
[383729947,1757103044673,-480.0,0.00014246,2]
[383729949,1757103044687,-2180.69,0.00014246,2]
[383729951,1757103044699,-209.56594064,0.00014246,2]
[383729954,1757103044711,-480.0,0.00014246,2]
[383729956,1757103044723,-480.0,0.00014246,2]
[383729959,1757103044737,-291.53,0.00014246,2]
[383729961,1757103044750,-7203.67,0.00014246,2]
[383729963,1757103044762,-480.0,0.00014246,2]
[383729966,1757103044773,-1225.97,0.00014246,2]
[383729968,1757103044784,-480.0,0.00014246,2]
[383729970,1757103044796,-480.0,0.00014246,2]
[383729973,1757103044809,-151.0,0.00014246,2]
[383729975,1757103044823,-151.0,0.00014246,2]
[383729977,1757103044836,-480.0,0.00014246,2]
[383729980,1757103044849,-480.0,0.00014246,2]
[383729982,1757103044864,-480.0,0.00014246,2]